Workbook

Sheet 食料品リスト
M1: =計算!M9 -> 乳製品の合計
B2: 食料品リスト
C3: 完了 | D3: 品目 | E3: 店舗 | F3: カテゴリ | G3: 数量 | H3: 単位 | I3: 単価 | J3: 合計 | K3: コメント | M3: =計算!L9 -> 37
C4: 1 | D4: オレンジ | E4: 食料品店 | F4: 農産物 | G4: 2 | H4: グラム | I4: ¥2.99 | J4: =IFERROR(リスト[数量]*リスト[単価],"") -> ¥5.98 | M4: =計算!M8 -> 農産物の合計
D5: リンゴ | E5: 果樹園 | F5: 農産物 | G5: 3 | H5: グラム | I5: ¥1.99 | J5: =IFERROR(リスト[数量]*リスト[単価],"") -> ¥5.97 | K5: クーポンあり | M5: =計算!L8 -> 45
D6: バナナ | E6: 食料品店 | F6: 農産物 | G6: 1 | H6: 房 | I6: ¥3.99 | J6: =IFERROR(リスト[数量]*リスト[単価],"") -> ¥3.99
D7: レタス | E7: 市場 | F7: 農産物 | G7: 2 | H7: 玉 | I7: ¥2.29 | J7: =IFERROR(リスト[数量]*リスト[単価],"") -> ¥4.58 | M7: =計算!M7 -> 肉類の合計
D8: トマト | E8: 市場 | F8: 農産物 | G8: 4 | H8: グラム | I8: ¥3.49 | J8: =IFERROR(リスト[数量]*リスト[単価],"") -> ¥13.96 | M8: =計算!L7 -> 80
D9: カボチャ | E9: 市場 | F9: 農産物 | G9: 2 | H9: 個 | I9: ¥1.50 | J9: =IFERROR(リスト[数量]*リスト[単価],"") -> ¥3.00
D10: セロリ | E10: 食料品店 | F10: 農産物 | G10: 2 | H10: 房 | I10: ¥1.99 | J10: =IFERROR(リスト[数量]*リスト[単価],"") -> ¥3.98 | M10: =計算!M6 -> 魚介類の合計
D11: きゅうり | E11: 市場 | F11: 農産物 | G11: 1 | H11: グラム | I11: ¥2.29 | J11: =IFERROR(リスト[数量]*リスト[単価],"") -> ¥2.29 | M11: =計算!L6 -> 109
D12: マッシュルーム | E12: 食料品店 | F12: 農産物 | G12: 0.5 | H12: グラム | I12: ¥2.25 | J12: =IFERROR(リスト[数量]*リスト[単価],"") -> ¥1.13 | K12: 大きなポットベラ
D13: 牛乳 | E13: 宅配 | F13: 乳製品 | G13: 2 | H13: リットル | I13: ¥3.99 | J13: =IFERROR(リスト[数量]*リスト[単価],"") -> ¥7.98 | M13: =計算!M3 -> その他の合計
D14: チーズ | E14: 宅配 | F14: 乳製品 | G14: 1 | H14: グラム | I14: ¥9.99 | J14: =IFERROR(リスト[数量]*リスト[単価],"") -> ¥9.99 | K14: チーズ詰め合わせ | M14: =計算!L3 -> 0
D15: 卵 | E15: 宅配 | F15: 乳製品 | G15: 2 | H15: ケース | I15: ¥3.50 | J15: =IFERROR(リスト[数量]*リスト[単価],"") -> ¥7.00
D16: カッテージ チーズ | E16: 宅配 | F16: 乳製品 | G16: 1 | H16: 500 g | I16: ¥3.89 | J16: =IFERROR(リスト[数量]*リスト[単価],"") -> ¥3.89 | M16: =計算!M4 -> 食料品の合計
D17: サワー クリーム | E17: 宅配 | F17: 乳製品 | G17: 1 | H17: 250 g | I17: ¥2.99 | J17: =IFERROR(リスト[数量]*リスト[単価],"") -> ¥2.99 | M17: =食料品合計 -> 271
D18: ヨーグルト | E18: 食料品店 | F18: 乳製品 | G18: 1 | H18: 500 g | I18: ¥4.99 | J18: =IFERROR(リスト[数量]*リスト[単価],"") -> ¥4.99 | K18: 蜂蜜入りギリシャ ヨーグルト
D19: 牛肉 | E19: 市場 | F19: 肉類 | G19: 10 | H19: グラム | I19: ¥7.99 | J19: =IFERROR(リスト[数量]*リスト[単価],"") -> ¥79.90 | K19: ベーコン巻きのヒレ肉
D20: サーモン (天然) | E20: 魚市場 | F20: 魚介類 | G20: 6 | H20: グラム | I20: ¥8.99 | J20: =IFERROR(リスト[数量]*リスト[単価],"") -> ¥53.94
D21: アラスカ キング クラブの足 | E21: 魚市場 | F21: 魚介類 | G21: 5 | H21: グラム | I21: ¥10.99 | J21: =IFERROR(リスト[数量]*リスト[単価],"") -> ¥54.95

Sheet 計算 (hidden)
A1: ***非表示のままにするシート***
K3: =SUM(リスト[合計])-SUM(K6:K9) -> ¥0.00 | L3: =ROUND(K3,0) -> ¥0 | M3: その他の合計
L4: =ROUNDUP(SUM(リスト[合計]),0) -> ¥271 | M4: 食料品の合計
E6: =IFERROR(INDEX(リスト[カテゴリ],MATCH(,COUNTIF($E$5:E5,リスト[カテゴリ]),)),"") -> 農産物 | F6: =SUMIFS(リスト[合計],リスト[カテゴリ],E6) -> 44.875 | G6: =F6+ROW()/1000000 -> 44.875006 | H6: =LARGE($G$6:$G$21,1) -> 108.890009 | I6: =MATCH(H6,$G$6:$G$21,0) -> 4 | J6: =INDEX($E$6:$E$21,$I6) -> 魚介類 | K6: =INDEX($F$6:$F$21,$I6) -> ¥108.89 | L6: =ROUND(K6,0) -> ¥109 | M6: =UPPER(J6) & "の合計" -> 魚介類の合計
E7: =IFERROR(INDEX(リスト[カテゴリ],MATCH(,COUNTIF($E$5:E6,リスト[カテゴリ]),)),"") -> 乳製品 | F7: =SUMIFS(リスト[合計],リスト[カテゴリ],E7) -> 36.84 | G7: =F7+ROW()/1000000 -> 36.840007 | H7: =LARGE($G$6:$G$21,2) -> 79.900008 | I7: =MATCH(H7,$G$6:$G$21,0) -> 3 | J7: =INDEX($E$6:$E$21,$I7) -> 肉類 | K7: =INDEX($F$6:$F$21,$I7) -> ¥79.90 | L7: =ROUND(K7,0) -> ¥80 | M7: =UPPER(J7) & "の合計" -> 肉類の合計
E8: =IFERROR(INDEX(リスト[カテゴリ],MATCH(,COUNTIF($E$5:E7,リスト[カテゴリ]),)),"") -> 肉類 | F8: =SUMIFS(リスト[合計],リスト[カテゴリ],E8) -> 79.9 | G8: 79.900008 | H8: =LARGE($G$6:$G$21,3) -> 44.875006 | I8: =MATCH(H8,$G$6:$G$21,0) -> 1 | J8: =INDEX($E$6:$E$21,$I8) -> 農産物 | K8: =INDEX($F$6:$F$21,$I8) -> ¥44.88 | L8: =ROUND(K8,0) -> ¥45 | M8: =UPPER(J8) & "の合計" -> 農産物の合計
E9: =IFERROR(INDEX(リスト[カテゴリ],MATCH(,COUNTIF($E$5:E8,リスト[カテゴリ]),)),"") -> 魚介類 | F9: =SUMIFS(リスト[合計],リスト[カテゴリ],E9) -> 108.89 | G9: 108.890009 | H9: =LARGE($G$6:$G$21,4) -> 36.840007 | I9: =MATCH(H9,$G$6:$G$21,0) -> 2 | J9: =INDEX($E$6:$E$21,$I9) -> 乳製品 | K9: =INDEX($F$6:$F$21,$I9) -> ¥36.84 | L9: =ROUND(K9,0) -> ¥37 | M9: =UPPER(J9) & "の合計" -> 乳製品の合計
E10: =IFERROR(INDEX(リスト[カテゴリ],MATCH(,COUNTIF($E$5:E9,リスト[カテゴリ]),)),"") ->  | F10: =SUMIFS(リスト[合計],リスト[カテゴリ],E10) -> 0 | G10: 1e-05
E11: =IFERROR(INDEX(リスト[カテゴリ],MATCH(,COUNTIF($E$5:E10,リスト[カテゴリ]),)),"") ->  | F11: =SUMIFS(リスト[合計],リスト[カテゴリ],E11) -> 0 | G11: 1.1e-05
E12: =IFERROR(INDEX(リスト[カテゴリ],MATCH(,COUNTIF($E$5:E11,リスト[カテゴリ]),)),"") ->  | F12: =SUMIFS(リスト[合計],リスト[カテゴリ],E12) -> 0 | G12: 1.2e-05
E13: =IFERROR(INDEX(リスト[カテゴリ],MATCH(,COUNTIF($E$5:E12,リスト[カテゴリ]),)),"") ->  | F13: =SUMIFS(リスト[合計],リスト[カテゴリ],E13) -> 0 | G13: 1.3e-05
E14: =IFERROR(INDEX(リスト[カテゴリ],MATCH(,COUNTIF($E$5:E13,リスト[カテゴリ]),)),"") ->  | F14: =SUMIFS(リスト[合計],リスト[カテゴリ],E14) -> 0 | G14: 1.4e-05
E15: =IFERROR(INDEX(リスト[カテゴリ],MATCH(,COUNTIF($E$5:E14,リスト[カテゴリ]),)),"") ->  | F15: =SUMIFS(リスト[合計],リスト[カテゴリ],E15) -> 0 | G15: 1.5e-05
E16: =IFERROR(INDEX(リスト[カテゴリ],MATCH(,COUNTIF($E$5:E15,リスト[カテゴリ]),)),"") ->  | F16: =SUMIFS(リスト[合計],リスト[カテゴリ],E16) -> 0 | G16: 1.6e-05
E17: =IFERROR(INDEX(リスト[カテゴリ],MATCH(,COUNTIF($E$5:E16,リスト[カテゴリ]),)),"") ->  | F17: =SUMIFS(リスト[合計],リスト[カテゴリ],E17) -> 0 | G17: 1.7e-05
E18: =IFERROR(INDEX(リスト[カテゴリ],MATCH(,COUNTIF($E$5:E17,リスト[カテゴリ]),)),"") ->  | F18: =SUMIFS(リスト[合計],リスト[カテゴリ],E18) -> 0 | G18: 1.8e-05
E19: =IFERROR(INDEX(リスト[カテゴリ],MATCH(,COUNTIF($E$5:E18,リスト[カテゴリ]),)),"") ->  | F19: =SUMIFS(リスト[合計],リスト[カテゴリ],E19) -> 0 | G19: 1.9e-05
E20: =IFERROR(INDEX(リスト[カテゴリ],MATCH(,COUNTIF($E$5:E19,リスト[カテゴリ]),)),"") ->  | F20: =SUMIFS(リスト[合計],リスト[カテゴリ],E20) -> 0 | G20: 2e-05
E21: =IFERROR(INDEX(リスト[カテゴリ],MATCH(,COUNTIF($E$5:E20,リスト[カテゴリ]),)),"") ->  | F21: =SUMIFS(リスト[合計],リスト[カテゴリ],E21) -> 0 | G21: 2.1e-05
